Cogmind - Beta 16 @@@ ROGUE MODE // 2025.12.06 @ 13:26:58 Player: Minty Result: Self-destructed Performance ------------- Evolutions (8) 4000 Regions Visited (17) 3400 Robots Destroyed (131) 655 Value Destroyed (4438) 4438 Prototype IDs (27) 540 Alien Tech Used (2) 400 Bonus (1738) 1738 TOTAL SCORE: 15171 Bonus ------- High Alert Combat Kills 438 Entered DSFs 1000 Met Zhirov 300 Cogmind --------- Core Integrity 1241/1450 Matter 45/300 Energy 100/100 System Corruption 5% Temperature Cool (0) Movement Treading (152) Location -2/Research Parts ------- > --- POWER (3) -------- (None) > --- PROPULSION (6) --- Biometal Heavy Treads Advanced Heavy Siege Treads > --- UTILITY (7) ------ High-capacity Storage Unit Experimental Optical Array Advanced Terrain Scan Processor Advanced Terrain Scan Processor > --- WEAPON (7) ------- (None) > --- INVENTORY (20) --- Advanced Heavy Siege Treads Advanced Heavy Siege Treads Advanced Heavy Siege Treads Improved Gyrokinetic Inverter Advanced Cryofiber Web Gravity Neutralizer Experimental Optical Array System Restoration Module Phase Gun Phase Gun Phase Gun Improved Remote Datajack Peak State ------------ > --- POWER ------------ Fusion Compressor > --- PROPULSION ------- Biometal Heavy Treads Advanced Heavy Siege Treads Advanced Heavy Siege Treads > --- UTILITY ---------- Advanced Cryofiber Web High-capacity Storage Unit Advanced Energy Well Experimental Optical Array Advanced Signal Interpreter Advanced Terrain Scan Processor Seismic Detector > --- WEAPON ----------- Linear Accelerator Linear Accelerator > --- INVENTORY -------- Advanced Heavy Siege Treads Advanced Heavy Siege Treads Advanced Heavy Siege Treads Improved Gyrokinetic Inverter Gravity Neutralizer Experimental Optical Array System Restoration Module Phase Gun Phase Gun Phase Gun Improved Remote Datajack [Rating: 119] Favorites ----------- Power Cooled Deuterium Engine Engine Cooled Deuterium Engine Power Core Micro Fission Core Reactor Heavy Antimatter Reactor Propulsion Wheel Treads Advanced Heavy Siege Treads Leg Enhanced Armored Leg Wheel Wheel Hover Unit Antigrav System Flight Unit Surge Thruster Utility Advanced Signal Interpreter Device Improved Weapon Cycler Storage Small Storage Unit Processor Advanced Signal Interpreter Hackware Hacking Suite Protection Reflective Plating Weapon Enhanced Coil Gun Energy Gun High-powered Shock Rifle Energy Cannon Cooled Particle Cannon Ballistic Gun Enhanced Coil Gun Ballistic Cannon Assault Cannon Launcher Improved Proton Missile Launcher Special Weapon Improved Plasma Cutter Impact Weapon Hammer Slashing Weapon Phasing Sabre Piercing Weapon Lance Special Melee Weapon Improved Datajack Build | -11 -10 -10 -10 -9 -8 -7 -7 -6 -5 -5 -5 -5 -4 -4 -3 -3 -2 ------- Run | Yrd Mat Min Exi Min Mat Fac DSF Fac Fac Upp Upp Zhi Pro Fac Res DSF Res Slots Evolved 16 | . . . . . 4 2 . 2 2 . . . . 2 2 . 2 Power 2 | . . . . . . . . . . . . . . 1 . . 1 Propulsion 4 | . . . . . 1 1 . . 1 . . . . . . . 1 Utility 5 | . . . . . 1 . . 1 1 . . . . 1 1 . . Weapon 5 | . . . . . 2 1 . 1 . . . . . . 1 . . Parts Attached 178 | . 7 5 . 2 13 . 12 36 35 1 3 8 5 34 4 5 8 Power 15 | . 2 1 . . 1 . 1 2 2 . . 1 . 3 1 . 1 Engine 5 | . 2 1 . . . . . 1 . . . . . 1 . . . Core 8 | . . . . . 1 . 1 1 2 . . . . 2 . . 1 Reactor 2 | . . . . . . . . . . . . 1 . . 1 . . Propulsion 54 | . . 2 . 1 5 . 3 7 12 . . 4 . 14 1 3 2 Treads 7 | . . . . . . . . 1 1 . . . . . . 3 2 Leg 9 | . . . . . . . . . 5 . . 3 . 1 . . . Wheel 8 | . . 2 . 1 . . . 4 1 . . . . . . . . Hover 18 | . . . . . 2 . . . 2 . . 1 . 13 . . . Flight 12 | . . . . . 3 . 3 2 3 . . . . . 1 . . Utility 54 | . 2 1 . . 4 . 1 14 11 1 1 3 2 8 1 . 5 Device 29 | . . 1 . . 3 . . 6 5 1 . 1 1 8 1 . 2 Storage 4 | . . . . . . . . . 2 . . 1 1 . . . . Processor 15 | . . . . . . . 1 7 3 . 1 . . . . . 3 Hackware 1 | . . . . . 1 . . . . . . . . . . . . Protection 5 | . 2 . . . . . . 1 1 . . 1 . . . . . Artifact . | . . . . . . . . . . . . . . . . . . Weapon 55 | . 3 1 . 1 3 . 7 13 10 . 2 . 3 9 1 2 . Energy Gun 15 | . 1 1 . . 1 . . 5 . . . . 2 4 1 . . Energy Cannon 3 | . . . . . . . . 1 1 . . . . 1 . . . Ballistic Gun 16 | . 1 . . . 1 . 5 1 6 . 1 . . 1 . . . Ballistic Cannon 5 | . . . . . . . . 1 1 . . . . 1 . 2 . Launcher 7 | . . . . 1 1 . 1 2 1 . . . . 1 . . . Special Weapon 1 | . . . . . . . . . . . . . 1 . . . . Impact Weapon 2 | . 1 . . . . . 1 . . . . . . . . . . Slashing Weapon 3 | . . . . . . . . 2 . . 1 . . . . . . Piercing Weapon 2 | . . . . . . . . 1 1 . . . . . . . . Special Melee Weapon 1 | . . . . . . . . . . . . . . 1 . . . Unidentified Prototypes 18 | . . . . . 1 . . 3 4 . . 6 . 4 . . . Corrupted Parts 3 | . . . . . 1 . . 2 . . . . . . . . . System Corruption 10 | . . . . . 7 . . 3 . . . . . . . . . Parts Lost 81 | . 1 3 . . 4 . 3 9 17 . 2 . 3 29 . 3 7 Power 9 | . . 1 . . 1 . . . 2 . . . . 3 . 1 1 Propulsion 30 | . . 1 . . . . 3 7 3 . 1 . 1 12 . 1 1 Utility 20 | . 1 1 . . 2 . . 1 5 . . . . 6 . 1 3 Weapon 22 | . . . . . 1 . . 1 7 . 1 . 2 8 . . 2 Highest Loss Streak 13 | . 1 2 . . 4 . 3 3 8 . 2 . 2 13 . 3 7 To Critical Strikes 1 | . . . . . . . . . . . . . . . . 1 . Average Backups 5 | 6 7 7 7 7 7 5 3 3 4 3 4 4 4 4 4 5 11 Power . | 1 1 . . . . 1 . 1 1 . . . . . . . . Propulsion . | 4 3 2 1 . . 1 . . . 1 1 . . . . 2 3 Utility 2 | . 1 3 4 4 4 2 . . 1 1 1 2 3 2 3 3 3 Weapon 1 | 1 . . 2 2 2 1 2 2 1 1 1 . . . . . 2 Tool/Special . | . . . . . . . . . . . . . . . . . . Unused Backups 29 | . 8 3 1 . 6 . . 1 1 . . . . 1 . . 8 Power 3 | . 1 . . . . . . 1 1 . . . . . . . . Propulsion 9 | . 4 3 . . . . . . . . . . . . . . 2 Utility 10 | . 1 . 1 . 5 . . . . . . . . 1 . . 2 Weapon 6 | . 2 . . . 1 . . . . . . . . . . . 3 Tool/Special 1 | . . . . . . . . . . . . . . . . . 1 Average Slot Usage (%) 75 | . 97 92 85 91 72 38 51 79 86 52 48 60 72 66 18 39 42 Engine 4 | . 14 13 14 14 7 . . 4 3 . . . . . . . . Core 1 | . . . . . . . 5 1 1 5 5 1 . 1 . . 2 Treads 1 | . . . . . . . . . 2 . . . . . . 7 11 Leg 7 | . 28 10 . . . . . . 12 . . 10 17 4 . . . Wheel 4 | . . 15 28 28 6 . . 6 4 . . . . . . . . Hover 3 | . . . . . 9 . 1 . . 11 7 8 6 13 2 4 . Flight 4 | . . . . . 3 23 20 14 . 17 17 6 . . 1 . . Device 10 | . . 9 14 14 13 7 5 11 15 11 6 4 8 16 6 7 4 Storage 4 | . 14 14 14 14 9 . . . 1 . . 3 7 3 . 3 5 Processor 5 | . . . . . . . 1 13 5 5 7 8 5 5 4 4 9 Protection 1 | . 11 3 . . . . . . 2 . . 3 1 . . . . Energy Gun 4 | . 2 10 . . 6 . . 3 5 . . . 8 8 . . . Energy Cannon 1 | . . . . . . . . 3 4 . . . . . . . . Ballistic Gun 6 | . 23 . . . 2 . 9 7 12 . 1 . 2 . . . . Ballistic Cannon 1 | . . . . . . . . 2 3 . . . . . . 5 7 Impact Weapon 3 | . 2 14 14 14 8 7 5 5 . . . . . . . . . Peak Build Rating 119 | 6 7 8 7 9 22 15 32 53 101 58 59 89 89 110 55 92 119 Average Rating 51 | 6 6 6 7 7 16 12 21 42 72 54 41 69 77 78 31 78 99 On Entrance 34 | 6 6 7 7 7 9 12 15 29 52 47 54 47 89 89 14 55 79 Avg Prop Armor Cover (%) 7 | . . . . . . . 6 5 6 5 7 7 3 10 2 1 23 Naked Turns 1 | . . . . . . . 1 . . . . . . . . . . Heaviest Build 91 | 11 15 16 13 17 24 11 16 46 86 17 17 43 78 91 16 74 75 Greatest Support 160 | 20 20 20 20 20 20 12 24 36 103 18 18 90 90 90 16 160 80 Greatest Overweight (x) 6 | . . 1 . . 2 . 2 6 4 . . 2 . 2 . . . Average Overweight (x) . | . . . . . . . . . . . . . . . . . . Largest Inventory Capacity 20 | 8 8 8 8 8 8 5 5 5 20 5 5 5 20 20 5 20 20 Average Capacity 8 | 8 8 8 8 8 7 5 5 5 8 5 5 5 19 8 5 17 20 Most Carried 15 | 6 8 8 8 8 8 5 5 5 6 4 5 5 6 6 5 11 15 Average Carried 5 | 6 7 7 7 7 7 4 3 3 4 3 4 4 5 4 4 8 14 Final Capacity 20 | 8 8 8 8 8 5 5 5 5 5 5 5 5 20 5 5 20 20 Final Carried 15 | 6 7 8 7 8 5 4 5 3 5 4 5 4 5 4 4 9 15 Class Distribution -------------------- 50% | Mutant 12% | Scavenger-Executioner 10% | Executioner 5% | Gunner 4% | Scavenger-Sprinter 3% | Scavenger-Gunner 3% | Scout Dominant Class ---------------- Mutant | -10/Materials Mutant | -10/Mines Mutant | -10/Exiles Mutant | -9/Mines Mutant | -8/Materials Sprinter | -7/Factory Scavenger-Sprinter | -7/DSF Scavenger-Executioner | -6/Factory Executioner | -5/Factory Mutant | -5/Upper Caves Mutant | -5/Upper Caves Mutant | -5/Zhirov Mutant | -4/Proximity Caves Mutant | -4/Factory Mutant | -3/Research Mutant | -3/DSF Mutant | -2/Research Resources | -11 -10 -10 -10 -9 -8 -7 -7 -6 -5 -5 -5 -5 -4 -4 -3 -3 -2 ----------- Run | Yrd Mat Min Exi Min Mat Fac DSF Fac Fac Upp Upp Zhi Pro Fac Res DSF Res Matter Collected 3671 | 165 246 80 . 10 84 . 266 730 1072 . 84 227 143 446 . 91 27 Remotely 20 | . . . . . . . . . . . . . . 20 . . . Salvage Created 6177 | . 241 435 . 15 108 . 337 1301 1966 . 79 391 450 854 . . . Parts 297 | . 15 15 . 3 12 . 16 52 107 . . 3 19 55 . . . Haulers Intercepted 5 | . . . . . 1 . . 2 1 . . . . 1 . . . Recyclers Shooed 7 | . 1 . . . . . . 1 2 . . . . 3 . . . Parts Field Recycled . | . . . . . . . . . . . . . . . . . . Retrieved Matter . | . . . . . . . . . . . . . . . . . . Parts Self-Destructed 16 | . . . . . . . . . . . . 1 15 . . . . Prevented . | . . . . . . . . . . . . . . . . . . Parts Restored . | . . . . . . . . . . . . . . . . . . Kills | -11 -10 -10 -10 -9 -8 -7 -7 -6 -5 -5 -5 -5 -4 -4 -3 -3 -2 ------- Run | Yrd Mat Min Exi Min Mat Fac DSF Fac Fac Upp Upp Zhi Pro Fac Res DSF Res Combat Hostiles Destroyed 79 | . 7 6 . . 2 . 5 13 29 . . . 7 10 . . . Melee 12 | . . 2 . . 1 . 2 2 4 . . . 1 . . . . Guns 35 | . 7 1 . . . . 3 . 10 . . . 6 8 . . . Cannons 11 | . . . . . . . . 5 6 . . . . . . . . AOE 16 | . . 1 . . 1 . . 3 9 . . . . 2 . . . Classes Destroyed 17 | . 3 3 . . 3 . 1 3 3 . . . 1 . . . . Worker 15 | . 1 1 . . . . . 4 8 . . . . 1 . . . Builder 11 | . . 1 . . . . . 3 4 . . . . 3 . . . Tunneler 6 | . . 2 . 1 1 . . 1 . . . . . 1 . . . Hauler 5 | . . . . . 1 . . 2 1 . . . . 1 . . . Recycler 8 | . . 1 . . . . . 3 2 . . . . 2 . . . Mechanic 1 | . . . . . . . . . 1 . . . . . . . . Operator 3 | . . . . . 1 . . 1 1 . . . . . . . . Watcher 3 | . . . . . . . . . 3 . . . . . . . . Swarmer 20 | . 3 . . . . . . 3 6 . . . 4 4 . . . Cutter 5 | . . . . . 2 . 3 . . . . . . . . . . Grunt 25 | . 4 6 . . . . . 5 8 . . . 2 . . . . Duelist 1 | . . . . . . . . . 1 . . . . . . . . Sentry 5 | . . . . . . . . 1 1 . . . 1 2 . . . Specialist 2 | . . . . . . . 2 . . . . . . . . . . Hunter 7 | . . . . . . . . 1 5 . . . . 1 . . . Programmer 14 | . . . . . . . . 3 8 . . . . 3 . . . Samaritan 2 | . . . . . . . . . . . . . 2 . . . . Best Kill Streak 8 | . 3 4 . 1 3 . 3 6 8 . . . 2 8 . . . Combat Bots Only 8 | . 3 2 . . 2 . 3 4 8 . . . 2 3 . . . Max Kills in Single Turn 5 | . 1 1 . 1 1 . 1 2 5 . . . 1 1 . . . Gunslinging . | . . . . . . . . . . . . . . . . . . Exploded 4 | . . 1 . . 1 . . 2 4 . . . . 1 . . . Melee 1 | . . 1 . . 1 . 1 1 1 . . . 1 . . . . Uniques/NPCs Destroyed . | . . . . . . . . . . . . . . . . . . Combat | -11 -10 -10 -10 -9 -8 -7 -7 -6 -5 -5 -5 -5 -4 -4 -3 -3 -2 -------- Run | Yrd Mat Min Exi Min Mat Fac DSF Fac Fac Upp Upp Zhi Pro Fac Res DSF Res Hostile Shots Fired 1103 | . 46 32 . . 30 . 34 103 291 . 42 . 86 235 . 122 82 Missed 390 | . 8 10 . . 12 . 11 44 99 . 24 . 27 99 . 35 21 Hits 713 | . 38 22 . . 18 . 23 59 192 . 18 . 59 136 . 87 61 Melee 21 | . . . . . 3 . 18 . . . . . . . . . . Projectile 692 | . 38 22 . . 15 . 5 59 192 . 18 . 59 136 . 87 61 AOE 5 | . . . . . . . . . 2 . . . . 3 . . . Critical Strikes 40 | . . 1 . . 5 . 10 1 8 . . . 2 10 . 3 . Actively Blocked 1 | . . . . . . . . . . . . . 1 . . . . Part Disruptions 1 | . . . . . . . . . . . . . . . . . 1 Damage Taken 14234 | . 384 405 . . 531 . 415 962 3697 . 279 . 1089 3219 . 1696 1557 Core 2495 | . 110 71 . . 152 . 179 85 233 . 66 . 269 1038 . 83 209 Absorbed by Shields . | . . . . . . . . . . . . . . . . . . Redirected to Shielding 135 | . . . . . . . . . . . . . 135 . . . . Ignored by Resistances 12 | . . . . . . . . . 12 . . . . . . . . Regen/Repaired (Parts) 34 | . . . . . . . . 34 . . . . . . . . . Core Remaining (%) 62 | 100 . . . 27 72 . 74 90 . . . . 43 3 . 93 . Volleys Fired 190 | . 32 1 . . 2 . 6 28 44 . 1 . 27 36 . 3 10 Largest 5 | . 2 1 . . 1 . 4 5 5 . 1 . 2 5 . 2 2 Hottest 367 | . 40 65 . . 33 . 102 245 257 . 43 . 151 367 . 108 108 Shots Fired 503 | . 64 1 . . 2 . 15 81 177 . 2 . 52 89 . 6 14 Gun 363 | . 64 1 . . . . 15 44 119 . 1 . 52 67 . . . Cannon 115 | . . . . . . . . 28 51 . . . . 16 . 6 14 Launcher 25 | . . . . . 2 . . 9 7 . 1 . . 6 . . . Special . | . . . . . . . . . . . . . . . . . . Kinetic 293 | . 64 . . . . . 15 49 121 . 1 . 14 9 . 6 14 Thermal 165 | . . 1 . . . . . 18 39 . . . 38 69 . . . Explosive 14 | . . . . . 2 . . 2 3 . 1 . . 6 . . . Electromagnetic 31 | . . . . . . . . 12 14 . . . . 5 . . . Robot Hit Streak 17 | . 17 2 . . 3 . 3 7 9 . 6 . 15 6 . 2 7 Robot Miss Streak 7 | . 3 . . . 1 . 4 6 7 . . . 5 3 . 1 2 Penetration Max 1 | . . . . . . . . 1 1 . . . . . . . . Secondary Targets 7 | . 2 . . . . . 1 . 2 . . . 1 1 . . . Max Gunslinging Chain 1 | . 1 . . . . . 1 . 1 . . . 1 1 . . . Shots Hit Robots 380 | . 44 21 . 1 6 . 11 63 106 . 2 8 38 65 . 4 11 Core Hits 203 | . 19 7 . 1 5 . 7 31 67 . 3 4 17 31 . 2 9 Critical Kills 4 | . . . . . . . . . 3 . . . . 1 . . . Critical Parts Destroyed 17 | . 1 4 . . 1 . . 3 4 . . . 1 3 . . . Critical Strikes 39 | . 1 4 . . 1 . . 4 18 . . . 4 7 . . . Burn 2 | . . . . . . . . . . . . . 2 . . . . Destroy 14 | . 1 . . . . . . . 7 . . . 1 5 . . . Blast 7 | . . . . . . . . 1 5 . . . . 1 . . . Smash 8 | . . 4 . . 1 . . 3 . . . . . . . . . Sever 2 | . . . . . . . . . . . . . 1 1 . . . Impale 6 | . . . . . . . . . 6 . . . . . . . . Melee Attacks 155 | . 3 22 . 1 6 . 19 29 40 . . 8 10 17 . . . Impact 80 | . 3 22 . 1 6 . 19 28 1 . . . . . . . . Slashing 36 | . . . . . . . . 1 . . . 8 10 17 . . . Piercing 39 | . . . . . . . . . 39 . . . . . . . . Sneak Attacks 48 | . 1 7 . 1 3 . 1 11 14 . . . 2 8 . . . Combat Hostiles 2 | . . . . . . . 1 1 . . . . . . . . . Follow-up Attacks . | . . . . . . . . . . . . . . . . . . Damage Inflicted 17407 | . 403 848 . 30 279 . 315 3061 6317 . 107 685 1006 3510 . 183 663 Guns 5034 | . 373 15 . . . . 141 522 2015 . 17 . 621 1330 . . . Cannons 2446 | . . . . . . . . 510 977 . . . . 340 . 145 474 Explosions 3590 | . . 111 . . 52 . . 620 1795 . 90 . . 922 . . . Melee 6107 | . 30 722 . 30 227 . 174 1409 1528 . . 685 385 917 . . . Ramming 230 | . . . . . . . . . 2 . . . . 1 . 38 189 Kinetic 4233 | . 373 . . . . . 141 656 2063 . 17 . 167 197 . 145 474 Thermal 3646 | . . 126 . . . . . 323 1356 . . . 454 1387 . . . Explosive 1958 | . . . . . 52 . . 166 728 . 90 . . 922 . . . Electromagnetic 1233 | . . . . . . . . 507 640 . . . . 86 . . . Impact 2694 | . 30 722 . 30 227 . 174 1409 102 . . . . . . . . Slashing 1987 | . . . . . . . . . . . . 685 385 917 . . . Piercing 1426 | . . . . . . . . . 1426 . . . . . . . . Highest Corruption 16 | . . . . . 7 1 1 4 16 16 16 16 16 11 . . 5 Average Corruption 7 | . . . . . 7 1 1 3 7 16 16 16 16 3 . . 4 Corruption Purged 2 | . . . . . . . . . 2 . . . . . . . . Corruption Blocked . | . . . . . . . . . . . . . . . . . . Effects 78 | . . . . . 4 . 3 8 26 2 3 9 14 9 . . . Message Errors 14 | . . . . . 2 . . 1 4 . 1 1 2 3 . . . Matter Fused 17 | . . . . . . . 1 1 10 . . 1 2 2 . . . Heat Flow Errors 8 | . . . . . . . 1 1 2 1 . 1 2 . . . . Energy Discharges 12 | . . . . . 1 . . 2 2 1 . 3 1 2 . . . Parts Rejected 1 | . . . . . . . . . 1 . . . . . . . . Parts Fused 4 | . . . . . . . . 1 . . . . 3 . . . . Data Loss (minor) 10 | . . . . . 1 . . . 3 . . 2 3 1 . . . Data Loss (major) 5 | . . . . . . . . 1 . . 1 1 1 1 . . . Misfires 3 | . . . . . . . . 1 1 . 1 . . . . . . Misdirections 1 | . . . . . . . . . 1 . . . . . . . . Weapon Failures 3 | . . . . . . . 1 . 2 . . . . . . . . Overload Shots 1 | . . . . . . . . 1 . . . . . . . . . Overflow Damage 2456 | . 5 266 . . 126 . . 841 590 . . 198 173 244 . . 13 Projectiles 70 | . . . . . . . . 25 32 . . . . . . . 13 Explosions 268 | . . 32 . . . . . 19 140 . . . . 77 . . . Melee 2118 | . 5 234 . . 126 . . 797 418 . . 198 173 167 . . . Knockbacks 21 | . . 5 . . 1 . . 10 3 . . . . . . . 2 Impact 13 | . . 5 . . 1 . . 7 . . . . . . . . . Kinetic 7 | . . . . . . . . 3 2 . . . . . . . 2 Secondary 1 | . . . . . . . . . 1 . . . . . . . . Self-Inflicted Damage 423 | . . 99 . . 44 . . 76 . . . . . 204 . . . Shots 10 | . . 2 . . 1 . . 3 . . . . . 4 . . . Rammed 36 | . . . . . . . . . . . . . . 2 . 6 28 Targets Rammed 38 | . 1 . . . . . . . 1 . . . . 2 . 6 28 Kicked 2 | . 1 . . . . . . . 1 . . . . . . . . Crushed . | . . . . . . . . . . . . . . . . . . Highest Temperature 1064 | . 83 24 . . 11 . 53 359 193 137 . 66 418 1064 . . . Average Temperature 107 | . 27 11 . . 11 . 19 117 54 69 . 44 146 213 . . . Received Heat Transfer 2192 | . 150 192 . . 27 . . 228 312 . 18 . 193 919 . . 153 Effects 13 | . . . . . . . . 2 . . . . 2 9 . . . Shutdowns 1 | . . . . . . . . . . . . . 1 . . . . Energy Bleed 2 | . . . . . . . . 1 . . . . 1 . . . . Interference 2 | . . . . . . . . . . . . . . 2 . . . Matter Decay 2 | . . . . . . . . . . . . . . 2 . . . Short Circuit 1 | . . . . . . . . 1 . . . . . . . . . Damage (minor) 3 | . . . . . . . . . . . . . . 3 . . . Damage (major) 2 | . . . . . . . . . . . . . . 2 . . . Siege Activations . | . . . . . . . . . . . . . . . . . . Martial Activations . | . . . . . . . . . . . . . . . . . . Shielding Activations . | . . . . . . . . . . . . . . . . . . Robots Disrupted . | . . . . . . . . . . . . . . . . . . Combat Hostiles . | . . . . . . . . . . . . . . . . . . Robots Corrupted 17 | . . 5 . . 2 . . 10 . . . . . . . . . Combat Hostiles 5 | . . 2 . . . . . 3 . . . . . . . . . Parts Fried 33 | . . 8 . . 8 . . 12 5 . . . . . . . . Impact Corruptions 41 | . 1 10 . . 4 . . 24 2 . . . . . . . . Robots Melted . | . . . . . . . . . . . . . . . . . . Combat Hostiles . | . . . . . . . . . . . . . . . . . . Parts Melted 8 | . . 1 . . . . . 2 2 . . . 3 . . . . Heat Transferred 4477 | . . 137 . . . . . 383 1441 . . . 962 1554 . . . Parts Sabotaged . | . . . . . . . . . . . . . . . . . . Parts Stolen . | . . . . . . . . . . . . . . . . . . Parts Stripped . | . . . . . . . . . . . . . . . . . . Power Chain Reactions 4 | . . . . . . . . . 4 . . . . . . . . Alert | -11 -10 -10 -10 -9 -8 -7 -7 -6 -5 -5 -5 -5 -4 -4 -3 -3 -2 ------- Run | Yrd Mat Min Exi Min Mat Fac DSF Fac Fac Upp Upp Zhi Pro Fac Res DSF Res Maximum Alert Level 3 | . . . . . . . . 2 3 . . . . 1 . . . Low Security (%) 63 | 100 100 100 . 100 100 100 100 27 24 . . . . 87 100 100 100 Level 1 18 | . . . . . . . . 35 36 . . . . 12 . . . Level 2 7 | . . . . . . . . 36 3 . . . . . . . . Level 3 9 | . . . . . . . . . 36 . . . . . . . . Level 4 . | . . . . . . . . . . . . . . . . . . Level 5 . | . . . . . . . . . . . . . . . . . . High Security . | . . . . . . . . . . . . . . . . . . Max Security . | . . . . . . . . . . . . . . . . . . Peak Influence 1056 | . 125 139 . 5 69 12 135 537 1056 . . . . 265 74 55 22 Initial 247 | . . 18 . . 1 8 4 70 247 . . . . 6 74 36 22 Average 225 | . 76 81 . . 8 9 48 311 492 . . . . 85 62 36 2 Influence Increases 4319 | . 237 294 . 5 106 9 150 1000 1424 . 155 15 150 726 5 34 9 Destroy 0b10 Robot/C 1580 | . 140 120 . . 40 . 100 260 580 . . . 140 200 . . . Destroy 0b10 Robot/NC 280 | . 5 25 . 5 15 . . 70 100 . 5 15 . 40 . . . Destroy Leader 376 | . 30 30 . . 12 . 20 84 138 . . . 10 52 . . . Successful Hack 103 | . 17 . . . . 9 . 58 14 . . . . . 5 . . Select Force Hacks 80 | . 30 . . . . . . . 50 . . . . . . . . Disable Machine 555 | . 15 90 . . 15 . 15 150 210 . . . . 60 . . . Destroy Structure 640 | . . 29 . . 9 . . 33 302 . . . . 254 . 4 9 Partial Spotted 60 | . . . . . 15 . . 15 15 . . . . 15 . . . Lose Combat Pursuer 645 | . . . . . . . 15 330 15 . 150 . . 105 . 30 . Influence Decreases 4319 | . 188 253 90 . 92 21 22 629 927 422 182 569 140 594 98 43 49 Entered New Map 1604 | . . 31 90 . 4 11 3 65 259 372 112 554 . 4 68 13 18 Time Decay 1887 | . 178 192 . . 48 10 . 374 498 50 50 15 120 300 30 . 22 Search Patrol Dispatched 100 | . . . . . . . . 100 . . . . . . . . . Lost Part 728 | . 10 30 . . 40 . 19 90 170 . 20 . 20 290 . 30 9 Squads Dispatched 36 | . 2 . . . 1 1 2 8 11 . . . . 9 . 1 1 Investigation 11 | . 2 . . . . 1 . 3 3 . . . . 2 . . . Extermination 9 | . . . . . . . . 3 3 . . . . 2 . . 1 Reinforcement 12 | . . . . . 1 . 2 2 5 . . . . 1 . 1 . Assault . | . . . . . . . . . . . . . . . . . . Garrison 4 | . . . . . . . . . . . . . . 4 . . . Intercept . | . . . . . . . . . . . . . . . . . . Searches Triggered 1 | . . . . . . . . 1 . . . . . . . . . Construction Impeded 4 | . . . . . . . . 1 2 . . . . 1 . . . Haulers Reinforced 2 | . . . . . . . . 1 1 . . . . . . . . Active Scanning Responses . | . . . . . . . . . . . . . . . . . . Cargo Convoy Interrupts 1 | . . . . . . . . . 1 . . . . . . . . Stealth | -11 -10 -10 -10 -9 -8 -7 -7 -6 -5 -5 -5 -5 -4 -4 -3 -3 -2 --------- Run | Yrd Mat Min Exi Min Mat Fac DSF Fac Fac Upp Upp Zhi Pro Fac Res DSF Res Distress Signals 8 | . . . . . . . . 1 3 . . . . 3 . . 1 Communications Jammed . | . . . . . . . . . . . . . . . . . . Distress Signals . | . . . . . . . . . . . . . . . . . . Times Spotted 182 | . 10 6 . . 5 . 9 41 32 . 16 . 13 38 . 6 6 Peak Tracking Total 18 | . 3 2 . . 5 . 3 12 5 . 18 . 5 16 . 4 5 Tactical Retreats 16 | . . . . . . . 1 7 1 . 1 . . 4 . 2 . Traps | -11 -10 -10 -10 -9 -8 -7 -7 -6 -5 -5 -5 -5 -4 -4 -3 -3 -2 ------- Run | Yrd Mat Min Exi Min Mat Fac DSF Fac Fac Upp Upp Zhi Pro Fac Res DSF Res Traps Triggered 8 | . . . . . . . 1 . 6 . . . . 1 . . . Indirectly 1 | . . . . . . . . . 1 . . . . . . . . Trap Hack Attempts . | . . . . . . . . . . . . . . . . . . Triggered . | . . . . . . . . . . . . . . . . . . Disarmed . | . . . . . . . . . . . . . . . . . . Reprogrammed . | . . . . . . . . . . . . . . . . . . Reused . | . . . . . . . . . . . . . . . . . . Traps Extracted . | . . . . . . . . . . . . . . . . . . Installed . | . . . . . . . . . . . . . . . . . . Triggered . | . . . . . . . . . . . . . . . . . . Machines | -11 -10 -10 -10 -9 -8 -7 -7 -6 -5 -5 -5 -5 -4 -4 -3 -3 -2 ---------- Run | Yrd Mat Min Exi Min Mat Fac DSF Fac Fac Upp Upp Zhi Pro Fac Res DSF Res Machines Disabled 37 | . 1 6 . . 1 . 1 10 14 . . . . 4 . . . Max in Single Turn 6 | . 1 6 . . 1 . 1 4 4 . . . . 1 . . . Machines Repaired . | . . . . . . . . . . . . . . . . . . Machines Dismantled . | . . . . . . . . . . . . . . . . . . Machines Sabotaged . | . . . . . . . . . . . . . . . . . . Overloaded Fab Kills . | . . . . . . . . . . . . . . . . . . Hacking | -11 -10 -10 -10 -9 -8 -7 -7 -6 -5 -5 -5 -5 -4 -4 -3 -3 -2 --------- Run | Yrd Mat Min Exi Min Mat Fac DSF Fac Fac Upp Upp Zhi Pro Fac Res DSF Res Machines Accessed 34 | . 5 . 1 . 1 2 . 12 4 . . 5 . 3 1 . . Terminals 18 | . 4 . . . 1 1 . 7 3 . . . . 1 1 . . Fabricators 4 | . . . . . . . . 2 1 . . . . 1 . . . Repair Stations 2 | . . . . . . . . 1 . . . . . 1 . . . Recycling Units 2 | . 1 . . . . . . 1 . . . . . . . . . Scanalyzers 2 | . . . . . . 1 . 1 . . . . . . . . . Garrison Access . | . . . . . . . . . . . . . . . . . . Total Hacks 92 | . 17 . 1 . 2 13 . 22 10 . . 18 . 8 1 . . Successful 54 | . 10 . 1 . . 10 . 11 3 . . 18 . . 1 . . Failed 37 | . 7 . . . 2 2 . 11 7 . . . . 8 . . . Catastrophic 13 | . 2 . . . 1 . . 5 3 . . . . 2 . . . Database Lockouts 1 | . . . . . . 1 . . . . . . . . . . . Manual 22 | . 4 . . . 2 . . 9 4 . . . . 3 . . . Terminals 42 | . 15 . . . 2 1 . 13 8 . . . . 2 1 . . Fabricators 9 | . . . . . . . . 4 2 . . . . 3 . . . Repair Stations 4 | . . . . . . . . 1 . . . . . 3 . . . Recycling Units 3 | . 2 . . . . . . 1 . . . . . . . . . Scanalyzers 15 | . . . . . . 12 . 3 . . . . . . . . . Garrison Access . | . . . . . . . . . . . . . . . . . . Terminal Hacks 32 | . 6 . 1 . . 1 . 4 1 . . 18 . . 1 . . Record 7 | . . . 1 . . . . . . . . 6 . . . . . Part Schematic 4 | . . . . . . . . . . . . 4 . . . . . Robot Analysis 4 | . . . . . . . . . . . . 4 . . . . . Prototype ID Bank 4 | . . . . . . . . . . . . 4 . . . . . Open DSF 3 | . . . . . . 1 . 1 . . . . . . 1 . . Branch Access Points 2 | . 1 . . . . . . 1 . . . . . . . . . Terminal Index 1 | . . . . . . . . . 1 . . . . . . . . Alert Level 1 | . . . . . . . . 1 . . . . . . . . . Locate Traps 3 | . 2 . . . . . . 1 . . . . . . . . . Patrol Status 2 | . 2 . . . . . . . . . . . . . . . . Hauler Manifests 1 | . 1 . . . . . . . . . . . . . . . . Fabricator Hacks 3 | . . . . . . . . 3 . . . . . . . . . Load Schematic 1 | . . . . . . . . 1 . . . . . . . . . Build 2 | . . . . . . . . 2 . . . . . . . . . Repair Station Hacks . | . . . . . . . . . . . . . . . . . . Recycling Unit Hacks 2 | . 1 . . . . . . 1 . . . . . . . . . Report Inventory 2 | . 1 . . . . . . 1 . . . . . . . . . Scanalyzer 10 | . . . . . . 9 . 1 . . . . . . . . . Insert Component 3 | . . . . . . 3 . . . . . . . . . . . Analyze 3 | . . . . . . 3 . . . . . . . . . . . Retrieve Study 4 | . . . . . . 3 . 1 . . . . . . . . . Garrison Access Hacks . | . . . . . . . . . . . . . . . . . . Unauthorized Hacks 7 | . 3 . . . . . . 2 2 . . . . . . . . Terminals 3 | . 2 . . . . . . . 1 . . . . . . . . Botnet 3 | . 2 . . . . . . . 1 . . . . . . . . Fabricators 2 | . . . . . . . . 1 1 . . . . . . . . Prioritize 1 | . . . . . . . . 1 . . . . . . . . . Overload 1 | . . . . . . . . . 1 . . . . . . . . Repair Stations 1 | . . . . . . . . 1 . . . . . . . . . Patch 1 | . . . . . . . . 1 . . . . . . . . . Recycling Units 1 | . 1 . . . . . . . . . . . . . . . . Tunnel 1 | . 1 . . . . . . . . . . . . . . . . Scanalyzers . | . . . . . . . . . . . . . . . . . . Garrison Access . | . . . . . . . . . . . . . . . . . . Data Cores Recovered 2 | . . . . . 1 . . 1 . . . . . . . . . Used 1 | . . . . . 1 . . . . . . . . . . . . Hacking Detections 24 | . 4 . . . 1 2 . 10 4 . . . . 3 . . . Full Trace Events 8 | . 2 . . . . 1 . 2 1 . . . . 2 . . . Feedback Events 1 | . . . . . . 1 . . . . . . . . . . . Corruption 1 | . . . . . . 1 . . . . . . . . . . . Feedback Blocked . | . . . . . . . . . . . . . . . . . . Robot Schematics Acquired . | . . . . . . . . . . . . . . . . . . Robots Built . | . . . . . . . . . . . . . . . . . . Authchips . | . . . . . . . . . . . . . . . . . . Time . | . . . . . . . . . . . . . . . . . . Total Robot Build Rating . | . . . . . . . . . . . . . . . . . . Part Schematics Acquired 6 | . . . . . . 2 . . . . . 4 . . . . . Parts Built 3 | . . . . . . . . 3 . . . . . . . . . Authchips . | . . . . . . . . . . . . . . . . . . Time 120 | . . . . . . . . 120 . . . . . . . . . Total Part Build Rating 11 | . . . . . . . . 11 . . . . . . . . . Part Studies Acquired 4 | . . . . . . 3 . 1 . . . . . . . . . Parts Repaired . | . . . . . . . . . . . . . . . . . . Time . | . . . . . . . . . . . . . . . . . . Parts Recycled . | . . . . . . . . . . . . . . . . . . Recycled Matter . | . . . . . . . . . . . . . . . . . . Retrieved Matter . | . . . . . . . . . . . . . . . . . . Retrieved Components . | . . . . . . . . . . . . . . . . . . Parts Scanalyzed 3 | . . . . . . 3 . . . . . . . . . . . Part Schematics Acquired 2 | . . . . . . 2 . . . . . . . . . . . Parts Damaged . | . . . . . . . . . . . . . . . . . . Bothacking | -11 -10 -10 -10 -9 -8 -7 -7 -6 -5 -5 -5 -5 -4 -4 -3 -3 -2 ------------ Run | Yrd Mat Min Exi Min Mat Fac DSF Fac Fac Upp Upp Zhi Pro Fac Res DSF Res Used RIF Installer . | . . . . . . . . . . . . . . . . . . Robots Hacked . | . . . . . . . . . . . . . . . . . . Non-combat . | . . . . . . . . . . . . . . . . . . Combat . | . . . . . . . . . . . . . . . . . . Robot Hacks Applied . | . . . . . . . . . . . . . . . . . . Relay Couplers Released . | . . . . . . . . . . . . . . . . . . Fabnet Peak Effective % . | . . . . . . . . . . . . . . . . . . Robots Rewired . | . . . . . . . . . . . . . . . . . . Allies Hacked . | . . . . . . . . . . . . . . . . . . Hacks Repelled . | . . . . . . . . . . . . . . . . . . Allies | -11 -10 -10 -10 -9 -8 -7 -7 -6 -5 -5 -5 -5 -4 -4 -3 -3 -2 -------- Run | Yrd Mat Min Exi Min Mat Fac DSF Fac Fac Upp Upp Zhi Pro Fac Res DSF Res Total Allies . | . . . . . . . . . . . . . . . . . . Largest Group . | . . . . . . . . . . . . . . . . . . Highest-Rated Group . | . . . . . . . . . . . . . . . . . . Highest-Rated Ally . | . . . . . . . . . . . . . . . . . . Total Orders 2 | . . . . . . . . . . 2 . . . . . . . EXPLORE 1 | . . . . . . . . . . 1 . . . . . . . RETURN 1 | . . . . . . . . . . 1 . . . . . . . Ally Attacks . | . . . . . . . . . . . . . . . . . . Total Damage . | . . . . . . . . . . . . . . . . . . Kills . | . . . . . . . . . . . . . . . . . . Allies Corrupted . | . . . . . . . . . . . . . . . . . . Allies Melted . | . . . . . . . . . . . . . . . . . . Intel | -11 -10 -10 -10 -9 -8 -7 -7 -6 -5 -5 -5 -5 -4 -4 -3 -3 -2 ------- Run | Yrd Mat Min Exi Min Mat Fac DSF Fac Fac Upp Upp Zhi Pro Fac Res DSF Res Active Infowar (turns) 2647 | . . 298 180 82 187 . . 807 912 . . . . . . . 181 Optics 678 | . . . . . . . . 497 . . . . . . . . 181 Sensors 2247 | . . 298 180 82 127 . . 648 912 . . . . . . . . Terrain 597 | . . . . . 107 . . 449 . . . . . . . . 41 Seismic 95 | . . . . . . . . . . . . . . . . . 95 ECM 1 | . . . . . 1 . . . . . . . . . . . . Robot Analysis Total 4 | . . . . . . . . . . . . 4 . . . . . Derelict Logs Recovered 6 | . . 1 . 1 . . . . . 1 2 . 1 . . . . Drone Launches 1 | . . . . . . . . . . 1 . . . . . . . Drone Recoveries 1 | . . . . . . . . . . 1 . . . . . . . Exploration | -11 -10 -10 -10 -9 -8 -7 -7 -6 -5 -5 -5 -5 -4 -4 -3 -3 -2 ------------- Run | Yrd Mat Min Exi Min Mat Fac DSF Fac Fac Upp Upp Zhi Pro Fac Res DSF Res Turns Passed 5716 | 2 407 450 180 82 206 24 185 879 1323 117 104 221 312 780 63 130 251 Spaces Moved 5627 | 2 242 346 225 88 257 78 186 1339 904 134 270 211 175 881 97 80 112 Core 248 | . . . . . . . 1 . . . . . . 219 28 . . Treads 165 | . . . . . . . . . . . . . . . . 53 112 Legs 1106 | 2 242 120 . . . . . . 340 . . 85 175 142 . . . Wheels 1240 | . . 226 225 88 54 . . 284 363 . . . . . . . . Hover 859 | . . . . . 144 . . . 159 . . 1 . 520 35 . . Flight 2009 | . . . . . 59 78 185 1055 42 134 270 125 . . 34 27 . Fastest Speed 14 | 120 120 80 80 80 20 29 14 14 34 34 34 34 120 36 45 45 145 Average Speed 72 | 120 120 99 80 80 55 29 29 45 107 34 34 73 120 61 55 121 146 Slowest Speed 275 | 120 120 190 80 80 170 29 150 275 190 34 34 230 120 190 70 160 160 Overloaded Moves 169 | . . . . . 7 . 8 123 . . . . . 31 . . . Propulsion Burnouts . | . . . . . . . . . . . . . . . . . . Robots Hopped 16 | . . . . . . . . 11 . . 5 . . . . . . Potential Cave-ins 1 | . . . . . . . . . 1 . . . . . . . . Cave-ins Triggered 1 | . . . . . . . . . 1 . . . . . . . . Teleports 1 | . . . . . . . . . . . . . . 1 . . . Exploration Rate (%) 39 | 2 40 81 61 39 21 4 72 40 29 55 55 60 33 25 3 88 4 Regions Visited 17 Branch Regions 7 Pre-discovered Areas 5 | . 1 1 . . . . . . . . . 3 . . . . . Known Exits Taken 10 | . 1 . . . . 1 . 1 1 1 1 1 1 1 1 . . Unknown Exits Taken 5 | 1 . 1 1 1 1 . . . . . . . . . . . . Scrap Searched 7 | . . 2 . 3 . . . . . . 1 . 1 . . . . Spaces Dug 9 | . . . . . . . . 3 3 . . . . 3 . . . Terrain Destroyed 416 | . . 31 . . 9 . 1 30 155 . 16 . 1 168 . 2 3 Melee 9 | . . . . . . . . 3 3 . . . . 3 . . . Projectile 78 | . . . . . . . 1 4 49 . . . 1 18 . 2 3 AOE 329 | . . 31 . . 9 . . 23 103 . 16 . . 147 . . . Terrain Rammed . | . . . . . . . . . . . . . . . . . . Walls Destroyed . | . . . . . . . . . . . . . . . . . . Machines Disabled . | . . . . . . . . . . . . . . . . . . Actions | -11 -10 -10 -10 -9 -8 -7 -7 -6 -5 -5 -5 -5 -4 -4 -3 -3 -2 --------- Run | Yrd Mat Min Exi Min Mat Fac DSF Fac Fac Upp Upp Zhi Pro Fac Res DSF Res Total 6643 | 1 302 412 225 97 310 78 268 1490 1075 205 274 264 224 1040 105 103 170 Wait 189 | . 5 29 . 4 1 . 7 33 15 70 4 1 2 15 . 1 2 Move 5580 | 1 241 345 224 87 256 77 185 1318 903 133 259 210 174 880 96 79 112 Hop 14 | . . . . . . . . 9 . . 5 . . . . . . Pick Up 67 | . 6 4 . 2 7 . 9 9 4 . . 6 1 5 4 5 5 Fast Attach 140 | . 2 2 . 1 12 . 10 22 32 . 3 10 4 30 1 4 7 Attach 60 | . 2 2 . . 4 1 9 10 2 1 1 5 2 13 4 2 2 Detach 45 | . . 2 . . 5 . 4 5 3 1 1 4 1 15 . . 4 Swap 54 | . 3 1 . 1 2 . . 13 14 . . 8 2 10 . . . Drop 96 | . 7 4 1 1 15 . 4 15 17 . . 12 1 17 . 2 . Fire 190 | . 32 1 . . 2 . 6 28 44 . 1 . 27 36 . 3 10 Melee 154 | . 3 22 . 1 6 . 19 28 40 . . 8 10 17 . . . Ram 2 | . . . . . . . . . . . . . . 2 . . . Kick 2 | . 1 . . . . . . . 1 . . . . . . . . Crush 34 | . . . . . . . . . . . . . . . . 6 28 Escape Stasis 15 | . . . . . . . 15 . . . . . . . . . . Rewire 1 | . . . . . . . . . . . . . . . . 1 . Trap . | . . . . . . . . . . . . . . . . . . Miscellaneous . | . . . . . . . . . . . . . . . . . . Route ------- -11/Scrapyard -10/Materials (discovered 2 exits: *Min x2) -10/Mines (discovered 2 exits: [*Mat] / *Exi) -10/Exiles -9/Mines -8/Materials -7/Factory -7/DSF -6/Factory (discovered 3 exits: *Fac / *Low x2) -5/Factory -5/Upper Caves -5/Upper Caves (discovered 2 exits: *Fac / *Zhi) -5/Zhirov -4/Proximity Caves -4/Factory (discovered 3 exits: *Res x2 / Arm) -3/Research -3/DSF -2/Research History --------- Turn | Location | Event 1 | -11/Scrapyard | Discovered new exit (range 1) 3 | -11/Scrapyard | Entered Materials 109 | -10/Materials | Identified exit to Mines 322 | -10/Materials | Build established: Mutant 410 | -10/Materials | Entered Mines 514 | -10/Mines | Core integrity fell below 50% 618 | -10/Mines | Learned location of Storage (-7) 819 | -10/Mines | Discovered new exit (range 5) 857 | -10/Mines | Deemed a non-threat by the Exiles lab entrance 857 | -10/Mines | Discovered new exit (range 5) 860 | -10/Mines | Entered Exiles 860 | -10/Exiles | Found Exiles lab abandoned 1031 | -10/Exiles | Discovered new exit (range 10) 1040 | -10/Exiles | Entered Mines 1098 | -9/Mines | Learned location of 1 exit from Lower Caves 1111 | -9/Mines | Discovered new exit (range 10) 1122 | -9/Mines | Entered Materials 1122 | -8/Materials | Evolved 4 slots: Propulsion x1, Utility x1, Weapon x2 1327 | -8/Materials | Discovered new exit (range 6) 1328 | -8/Materials | Entered Factory 1328 | -7/Factory | Evolved 2 slots: Propulsion x1, Weapon x1 1332 | -7/Factory | Central database locked down 1351 | -7/Factory | Identified exit to DSF 1352 | -7/Factory | Entered DSF 1357 | -7/DSF | Lost 4 parts (1p2u1w) 1357 | -7/DSF | Discovered new exit (range 16) 1373 | -7/DSF | Additional patrols routed to DSF 1444 | -7/DSF | Lost 3 parts (3n) 1537 | -7/DSF | Entered Factory 1537 | -6/Factory | Evolved 2 slots: Utility x1, Weapon x1 1638 | -6/Factory | Fabricated Imp. Signal Interpreter (x2) 1733 | -6/Factory | Discovered new exit (range 10) 1739 | -6/Factory | Identified exit to Lower Caves 1798 | -6/Factory | Fabricated Imp. Proton Missile Launcher (x1) 1887 | -6/Factory | Search patrols dispatched 2228 | -6/Factory | Lost 3 parts (1n1u1w) 2400 | -6/Factory | Discovered new exit (range 9) 2408 | -6/Factory | Identified exit to Factory 2416 | -6/Factory | Entered another Factory area 2416 | -5/Factory | Evolved 2 slots: Propulsion x1, Utility x1 2480 | -5/Factory | Build established: Scavenger-Executioner 3103 | -5/Factory | Lost 3 parts (2u1w) 3256 | -5/Factory | Destroyed 8 combat bots 3307 | -5/Factory | System corruption reached 10% 3328 | -5/Factory | Crushed by falling debris 3359 | -5/Factory | Lost 3 parts (2n1u) 3407 | -5/Factory | Cargo convoy interrupted 3408 | -5/Factory | Build established: Executioner 3485 | -5/Factory | Spotted B-75 Beast 3645 | -5/Factory | Lost 8 parts (1p1n2u4w) 3733 | -5/Factory | Discovered new exit (range 15) 3738 | -5/Factory | Identified exit to Upper Caves 3739 | -5/Factory | Entered Upper Caves 3796 | -5/Upper Caves | Discovered new exit (range 9) 3798 | -5/Upper Caves | Identified exit to Upper Caves 3856 | -5/Upper Caves | Entered another Upper Caves area 3858 | -5/Upper Caves | Learned Factory terminal intel 3874 | -5/Upper Caves | Discovered new exit (range 10) 3877 | -5/Upper Caves | Identified exit to Factory 3947 | -5/Upper Caves | Build established: Mutant 3955 | -5/Upper Caves | Encountered a Warlord checkpoint 3956 | -5/Upper Caves | Discovered new exit (range 15) 3960 | -5/Upper Caves | Identified exit to Zhirov 3960 | -5/Upper Caves | Entered Zhirov 3961 | -5/Zhirov | Discovered new exit (range 3) 3967 | -5/Zhirov | Met Zhirov 3975 | -5/Zhirov | Learned location of Quarantine (-2) 3975 | -5/Zhirov | Learned location of Testing (-3) 3975 | -5/Zhirov | Learned location of Command (-1) 3977 | -5/Zhirov | Zhirov requested help retrieving the SGEMP Prototype 3984 | -5/Zhirov | Found Alien Artifact 3984 | -5/Zhirov | Identified Integrated Dissipator 3984 | -5/Zhirov | Installed Integrated Dissipator, increased core heat dissipation (+20) 3990 | -5/Zhirov | Found Alien Artifact 4180 | -5/Zhirov | Identified exit to Proximity Caves 4181 | -5/Zhirov | Entered Proximity Caves 4292 | -4/Proximity Caves | Core integrity fell below 50% 4404 | -4/Proximity Caves | Attracted the attention of an 0b10 checkpoint 4493 | -4/Proximity Caves | Entered Factory 4493 | -4/Factory | Evolved 2 slots: Power x1, Utility x1 4494 | -4/Factory | Identified exit to Armory 4495 | -4/Factory | Loaded intel: 27 terminal locations 4613 | -4/Factory | Garrison activated, responded to threat 4648 | -4/Factory | Discovered new exit (range 15) 4665 | -4/Factory | Identified exit to Research 4853 | -4/Factory | Spotted B-86 Titan 4935 | -4/Factory | Identified Transdimensional Reconstructor 4935 | -4/Factory | Warped through subspace 4972 | -4/Factory | Lost 9 parts (1p4n2u2w) 4998 | -4/Factory | Spotted B-86 Titan 5034 | -4/Factory | Discovered exit to Research (range 8) 5175 | -4/Factory | Lost 13 parts (2p4n4u3w) 5221 | -4/Factory | Core integrity fell below 50% 5238 | -4/Factory | System corruption reached 10% 5241 | -4/Factory | Core integrity fell below 20% 5244 | -4/Factory | Lost 4 parts (4n) 5271 | -4/Factory | Garrison activated, responded to threat 5273 | -4/Factory | Entered Research 5273 | -3/Research | Evolved 2 slots: Utility x1, Weapon x1 5336 | -3/Research | Identified exit to DSF 5336 | -3/Research | Entered DSF 5359 | -3/DSF | Additional patrols routed to DSF 5446 | -3/DSF | Discovered new exit (range 14) 5454 | -3/DSF | Lost 3 parts (1p1n1u) 5465 | -3/DSF | Identified exit to Research 5466 | -3/DSF | Entered Research 5466 | -2/Research | Evolved 2 slots: Power x1, Propulsion x1 5717 | -2/Research | Self-destructed Last Messages --------------- 05684_ Acquired 10 matter. 05684_ Penetrated by Slug. 05685_ P-80 Master knocked back. 05689_ Adv. Energy Well destroyed. 05689_ Acquired 8 matter. 05691_ U-05 Engineer builds a Wall. 05696_ W-44 Eye sends out distress signal. 05696_ Acquired 3 matter. 05699_ Linear Accelerator destroyed. 05699_ U-05 Engineer builds a Wall. 05702_ Slammed into P-80 Master. 05706_ Penetrated by Slug. 05706_ Slammed into P-80 Master. 05710_ Penetrated by Slug. 05710_ Slug penetrates P-80 Master. 05711_ Slammed into P-80 Master. 05713_ Penetrated by Slug. 05713_ Slug penetrates Wall. 05714_ Slammed into P-80 Master. 05716_ Penetrated by Slug. Map ----- +----------------------------------------------------+ | ??????????????? ??? "?""#?????????????????????? | | ????????????##? ??#??? ? #??# ?"???????????????? | | ????###+#????# ? #? ? ?###?###???????????????? | | ??? ? ? ? ?? ################???????????????? | | ??? ?? "#### ?"""?"?" ?##????????????? | | ?? ?? ? ? ?"##? ?"" """ + ????????????? | | ? ? ????""" ?"#### ? ?? #####?????????? | | ? ### ? """ ""####? ?## ??????????? | | #?# """ ""##?# ? ? ? ## ?#???????? | | ### T?#### ?## ????????? | | ???# ""###? ?? ?# ? # ??????? | | ? ?## ""####?#?##+#?##?#?? #???????? | | ?#?# """ ""####?### ? # ? + ? ????? | | ? ### """ ""##??##?# + ? ? ????? | | ####### """ "#?###### ?? ?# ? ?# ??????? | | # ##?####?##?#### # #? ???? | | # #?##?#### ## #?##+# ?? ???? | | # ######### # ! ### ? ???? | | # #?####### # ? ?#? ?? ??? | | # ######?## / / ? ? ??? | | # ######### # ###? ?? | | # ! " " ##%% # # ? ?##? ??? | | # " " # # %= #?#######? ???? | | # ""G"" # Yp # ??? ### ? ?? | | ####+## /Yu p # % # "" ??#? ????? | | ?### # == @###### ? ?? ? ??? | | #### # = ####? ?? ???+## ??? | | ##### #############?# ## ? ? ???? | | ####+###+#######+#####?# ####?######### + ? ?? | | #######??#########?### # ?? ?? | | #?###?##?#####?#?##### #? ? ??? | | """"" ###??###?###??#?##??## ?#?##??? | | """"" !! #####?#######?##?###?# #???#??? | | """"" ! #######?######?#######? #???##?? | | !! #?############??###??#?###??#?#?? | | #####?##???#?###############????? | | #######################################?###??#???? | | | | | | | | | | | | | | | | | | | | | | | | | | | +----------------------------------------------------+ Best States ------------- Heat Dissipation 101 Energy Generation 35 Energy Capacity 1005 Matter Stores 300 Matter Capacity 300 Sight Range 23 Robot Scan Range 15 Terrain Scan Range 24 Terrain Scan Density 410 Additional Mass Support 12 Base Temperature (-) 200 Armor Coverage 150 Resistance: TH 10 Power Shielding 66 Propulsion Shielding 90 Weapon Cycling 20 Evasion (%) 65 Targeting Accuracy 5 Target Analysis 6 Recoil Reduction 4 Particle Charging 30 Kinecelleration 40 Offensive Hacking 10 Item Schematics ----------------- Imp. Signal Interpreter | -7/Factory | Scanalyzed Aerolev Unit | -7/Factory | Scanalyzed Assault Drone Bay | -5/Zhirov | Free Exp. Optical Array | -5/Zhirov | Free Imp. Arc Thrower | -5/Zhirov | Free Exp. Heat Sink | -5/Zhirov | Free Robot Schematics ------------------ None Fabricated ------------ Imp. Signal Interpreter | x2 | -6/Factory Imp. Proton Missile Launcher | x1 | -6/Factory | Preloaded Repaired ---------- Nothing Studied --------- Surge Thruster | -7/Factory | Hacked Hammer | -7/Factory | Hacked Nuclear Core | -7/Factory | Hacked Cesium-ion Thruster | -6/Factory | Hacked Alien Tech Used ----------------- Integrated Dissipator Transdimensional Reconstructor Achievements -------------- None Challenges ------------ None Game ------ Seed TransportVortexMagmablaster Manual? 0 Play Time 00:53:24 Cumulative 1236.2 hours Start 2025.12.03 @ 18:22:51 End 2025.12.06 @ 13:26:58 Sessions 5 Manual Loads 0 Difficulty Rogue Special Mode None Game No. 1519 Rogue 1235 Adventurer 124 Explorer 160 Win Type - Total 58 Types 44/0/8/4/1/0/0/1/0/0 Lore% 93 Gallery% 87 Achievement% 66 Wizard Run 0 Options --------- Layout 0 ASCII 0 Keyboard 1 Movement Numpad Keybinds 0 Fullscreen 2 Font 18/X11 Map View 76x50 Zoom Use 0% Tactical HUD 1 Map Filters NONE Filters NONE Steam 1 RUN: 327d2eb9-65db-4497-a79d-d03077cbe720